bitfinex/quotes_BTCUSD_20230904
["timestamp","ask_amount","ask_price","bid_price","bid_amount"]
[1693843773718,0.154788,25846.0,25845.0,0.78838236]
[1693843773928,0.154788,25846.0,25845.0,1.03812186]
[1693843774138,0.154788,25846.0,25845.0,1.06312186]
[1693843774349,0.154788,25846.0,25845.0,1.08812186]
[1693843774760,0.154788,25846.0,25845.0,1.06312186]
[1693843774967,0.154788,25846.0,25845.0,1.08812186]
[1693843775465,0.154788,25846.0,25845.0,0.83838236]
[1693843775666,0.154788,25846.0,25845.0,1.09453982]
[1693843775884,0.154788,25846.0,25845.0,0.93067002]
[1693843776302,0.154788,25846.0,25845.0,0.95067002]
[1693843776478,0.9892,25850.0,25847.0,0.02]
[1693843776643,1.547222,25853.0,25848.0,0.81156079]
[1693843776839,0.38664527,25852.0,25849.0,0.15465811]
[1693843777041,0.38664527,25852.0,25850.0,0.386846]
[1693843777270,1.16028227,25852.0,25850.0,0.386846]
[1693843777632,1.31504527,25852.0,25850.0,0.386846]
[1693843778404,0.54140827,25852.0,25850.0,0.386846]
[1693843778607,0.54140827,25852.0,25850.0,0.581269]
[1693843779223,0.154763,25852.0,25850.0,0.581269]
[1693843779430,0.156763,25852.0,25851.0,0.94365]
[1693843779635,0.156763,25852.0,25851.0,0.386832]
[1693843780080,0.17166089,25852.0,25851.0,0.386832]
[1693843780514,0.18894,25857.0,25851.0,0.386832]
[1693843780515,0.44430877,25866.0,25861.0,0.9]
[1693843780732,0.0197,25872.0,25870.0,0.02]
[1693843780733,0.29728562,25872.0,25870.0,0.02]
[1693843780951,0.29728562,25872.0,25871.0,0.31326536]
[1693843780952,0.0197,25872.0,25871.0,0.31326536]
[1693843781175,0.0197,25877.0,25874.0,0.09999936]
[1693843781393,0.0197,25877.0,25876.0,0.386458]
[1693843781614,0.0197,25877.0,25876.0,1.41448075]
[1693843781841,0.20934527,25877.0,25876.0,0.45680569]
[1693843782081,0.4243798,25877.0,25876.0,0.45680569]
[1693843782322,0.50916527,25877.0,25876.0,0.45680569]
[1693843782535,0.58064389,25877.0,25876.0,0.45680569]
[1693843782744,0.59240389,25877.0,25876.0,0.45680569]
[1693843782965,0.60698389,25877.0,25875.0,0.27439311]
[1693843783171,0.10957862,25877.0,25876.0,0.68510472]
[1693843783382,0.22549862,25877.0,25876.0,0.45680569]
[1693843783605,0.22549862,25877.0,25875.0,0.7311988]
[1693843783606,0.18133862,25877.0,25875.0,0.7311988]
[1693843783820,0.18133862,25877.0,25874.0,0.008]
[1693843783821,1.79653048,25877.0,25876.0,0.71010954]
[1693843784028,1.79653048,25877.0,25876.0,0.68946141]
[1693843784029,1.87075048,25877.0,25876.0,0.68946141]
[1693843784260,2.16991048,25877.0,25876.0,0.36964626]
[1693843784472,2.16703048,25877.0,25876.0,0.34464364]
[1693843784687,2.55667575,25877.0,25876.0,0.82644933]
[1693843784907,2.55331575,25877.0,25876.0,0.11622216]
[1693843785111,3.32950275,25877.0,25876.0,0.09122216]
[1693843785316,3.32278275,25877.0,25876.0,0.09122216]
[1693843785535,3.32278275,25877.0,25876.0,0.004]
[1693843785536,3.24182275,25877.0,25876.0,0.004]
[1693843785740,3.25606275,25877.0,25876.0,0.004]
[1693843786148,3.17606275,25877.0,25876.0,0.004]
[1693843786371,3.25606275,25877.0,25876.0,0.004]
[1693843786582,0.06,25874.0,25873.0,0.02822493]
[1693843786795,0.55464527,25874.0,25873.0,0.48513633]
[1693843787002,0.76534525,25874.0,25873.0,0.48513633]
[1693843787657,0.76534525,25874.0,25873.0,0.4569114]
[1693843787658,0.49464527,25874.0,25873.0,0.4569114]
[1693843787873,0.49464527,25874.0,25873.0,0.003]
[1693843787874,0.38664527,25874.0,25873.0,0.003]
[1693843788092,0.39994099,25874.0,25873.0,0.003]
[1693843789371,0.69952299,25874.0,25873.0,0.003]
[1693843789798,2.01584529,25874.0,25873.0,0.003]
[1693843790018,2.01584529,25874.0,25869.0,0.32830321]
[1693843790019,1.19291699,25874.0,25869.0,0.05994253]
[1693843790229,1.19291699,25874.0,25870.0,0.45691854]
[1693843790230,0.38664527,25873.0,25870.0,0.45691854]
[1693843790438,1.57924772,25874.0,25873.0,0.20677685]
[1693843791059,1.19291699,25874.0,25873.0,0.23177685]
[1693843791879,1.17964127,25874.0,25873.0,0.24777685]
[1693843792090,1.17964127,25874.0,25873.0,0.09890668]
[1693843792294,1.19173948,25874.0,25873.0,0.09890668]
[1693843792435,1.42074393,25874.0,25873.0,0.09890668]
[1693843792668,1.43097643,25874.0,25873.0,0.09890668]
[1693843793077,1.43097643,25874.0,25873.0,0.08290668]
[1693843793287,1.43097643,25874.0,25873.0,0.05790668]
[1693843793487,1.43097643,25874.0,25873.0,0.06590668]
[1693843793832,1.43097643,25874.0,25873.0,0.07890668]
[1693843794207,1.43097643,25874.0,25873.0,0.05790668]
[1693843794208,0.65798043,25874.0,25873.0,0.05790668]
[1693843794391,0.65798043,25874.0,25873.0,0.06990668]
[1693843795313,0.65798043,25874.0,25873.0,0.012]
[1693843799469,2.21763002,25874.0,25873.0,0.012]
[1693843799653,0.02,25873.0,25867.0,0.07999936]
[1693843799903,0.38664527,25872.0,25867.0,0.07999936]
[1693843800229,0.29550023,25871.0,25867.0,0.07999936]
[1693843800444,0.38664527,25870.0,25867.0,0.07999936]
[1693843800645,0.30759823,25871.0,25870.0,0.4662593]
[1693843800828,0.38664527,25871.0,25870.0,0.4662593]
[1693843801000,0.65729302,25871.0,25870.0,0.4662593]
[1693843801571,0.38664527,25871.0,25870.0,0.4662593]
[1693843801990,0.792912,25877.0,25873.0,0.29100459]
[1693843801991,0.870967,25875.0,25873.0,0.29100459]
[1693843802197,0.36890554,25875.0,25873.0,0.29100459]
[1693843802636,0.30890554,25875.0,25873.0,0.29100459]
[1693843802838,0.2365793,25874.0,25873.0,0.29100459]
[1693843803261,0.192646,25875.0,25873.0,0.31600459]
[1693843803690,0.192646,25875.0,25873.0,0.52290459]
[1693843803691,0.154646,25875.0,25873.0,0.52290459]
[1693843803928,0.154646,25875.0,25873.0,0.29100459]
[1693843804136,0.154646,25875.0,25873.0,0.31600459]
[1693843804578,0.154646,25875.0,25873.0,0.33200459]
[1693843804998,0.154646,25875.0,25873.0,0.31600459]
[1693843805655,0.154646,25875.0,25873.0,0.34100459]
[1693843806525,0.268808,25874.0,25873.0,0.31600459]
[1693843806739,0.268808,25874.0,25873.0,0.34100459]
[1693843807180,0.42899067,25874.0,25873.0,0.34100459]
[1693843807392,0.72604581,25874.0,25873.0,0.34100459]
[1693843807599,0.68370041,25874.0,25873.0,0.31600459]
[1693843807828,0.68370041,25874.0,25873.0,0.34100459]
[1693843808037,0.68370041,25874.0,25873.0,0.31600459]
[1693843808251,0.68370041,25874.0,25873.0,0.29100459]
[1693843808485,0.29705514,25874.0,25873.0,0.31600459]
[1693843809335,0.29705514,25874.0,25873.0,0.29100459]
[1693843809538,0.29705514,25874.0,25873.0,0.31600459]
[1693843809949,0.30918361,25874.0,25873.0,0.31600459]
[1693843810987,0.01212847,25874.0,25873.0,0.31600459]
[1693843811905,0.32850213,25874.0,25873.0,0.34100459]
[1693843812124,0.7151474,25874.0,25873.0,0.34100459]
[1693843812345,0.61517795,25874.0,25873.0,0.34100459]
[1693843813191,0.61517795,25874.0,25873.0,0.31600459]
[1693843813395,0.61517795,25874.0,25873.0,0.29100459]
[1693843813603,0.61517795,25874.0,25873.0,0.34100459]
[1693843813806,0.61517795,25874.0,25873.0,0.31600459]
[1693843814232,0.61517795,25874.0,25873.0,0.34100459]
[1693843815066,0.61517795,25874.0,25873.0,0.31600459]
[1693843815277,0.61517795,25874.0,25873.0,0.34100459]
[1693843818434,0.61517795,25874.0,25873.0,0.05]
[1693843822399,0.22597947,25874.0,25873.0,0.37039147]
[1693843822603,0.22597947,25874.0,25873.0,0.82726612]
[1693843823047,0.22597947,25874.0,25873.0,0.14154023]
[1693843823791,0.22597947,25874.0,25873.0,0.05]
[1693843824026,0.22597947,25874.0,25873.0,0.23308084]
[1693843824747,0.22597947,25874.0,25873.0,0.68995597]
[1693843824986,0.22597947,25874.0,25873.0,0.50687513]
[1693843826069,0.22597947,25874.0,25873.0,0.45549545]
[1693843826285,0.22597947,25874.0,25873.0,0.91237058]
[1693843828030,0.22597947,25874.0,25873.0,0.50687513]
[1693843829459,0.01267645,25874.0,25873.0,0.50687513]
[1693843829651,0.01267645,25874.0,25873.0,0.61447513]
[1693843830694,0.01267645,25874.0,25873.0,0.58947513]
[1693843830845,0.01267645,25874.0,25873.0,0.56447513]
[1693843831054,0.01267645,25874.0,25873.0,0.58947513]
[1693843831281,0.01267645,25874.0,25873.0,0.61447513]
[1693843831835,0.01267645,25874.0,25873.0,0.58947513]
[1693843832488,0.01267645,25874.0,25873.0,0.61447513]
[1693843832691,0.154646,25875.0,25873.0,0.63112936]
[1693843832945,0.154646,25875.0,25874.0,0.86491417]
[1693843833789,2.08718327,25875.0,25874.0,0.86491417]
[1693843833990,2.08718327,25875.0,25874.0,0.45687513]
[1693843833991,2.4564842,25875.0,25874.0,0.45687513]
[1693843834431,2.31220053,25875.0,25874.0,0.48187513]
[1693843834639,2.31220053,25875.0,25874.0,0.45687513]
[1693843835047,2.31220053,25875.0,25874.0,0.50687513]
[1693843835246,2.31220053,25875.0,25874.0,0.48187513]
[1693843836514,0.37966326,25875.0,25874.0,0.48187513]
[1693843836721,0.37966326,25875.0,25874.0,0.58947513]
[1693843836960,0.37966326,25875.0,25874.0,0.91491417]
[1693843837366,0.76630853,25875.0,25874.0,0.50687513]
[1693843837573,3.58653879,25875.0,25874.0,0.05682833]
[1693843837782,0.06,25873.0,25872.0,0.32510853]
[1693843837989,3.66626927,25873.0,25872.0,0.14077657]
[1693843838209,3.66626927,25873.0,25872.0,0.1382507]
[1693843838210,3.96379612,25873.0,25872.0,0.1382507]
[1693843838822,3.96379612,25873.0,25869.0,0.1382507]
[1693843838823,0.06,25871.0,25869.0,0.1382507]
[1693843839029,0.06,25871.0,25866.0,0.25950409]
[1693843839030,0.63241696,25870.0,25866.0,0.25950409]
[1693843839233,0.63241696,25870.0,25867.0,0.15733477]
[1693843839234,0.24577169,25870.0,25867.0,0.15733477]
[1693843839437,0.24577169,25870.0,25867.0,0.1076]
[1693843839849,0.24577169,25870.0,25868.0,0.01624046]
[1693843840662,0.24777169,25870.0,25868.0,0.01624046]
[1693843840818,0.24577169,25870.0,25868.0,0.01624046]
[1693843841011,0.24777169,25870.0,25868.0,0.04124046]
[1693843841235,0.24877169,25870.0,25868.0,0.05524046]
[1693843841597,0.22364092,25869.0,25868.0,0.05524046]
[1693843842374,0.22364092,25869.0,25865.0,0.40658937]
[1693843842549,0.22364092,25869.0,25867.0,0.1076]
[1693843843015,0.22364092,25869.0,25866.0,0.0153905]
[1693843843403,0.22464092,25869.0,25868.0,0.012]
[1693843843599,0.002,25869.0,25868.0,0.021]
[1693843843827,0.22995149,25869.0,25868.0,0.021]
[1693843844041,0.002,25869.0,25867.0,0.021]
[1693843844220,0.002,25869.0,25866.0,0.0153905]
[1693843844221,0.25488855,25868.0,25866.0,0.0153905]
[1693843844390,0.25488855,25868.0,25866.0,0.0603905]
[1693843844769,0.25488855,25868.0,25866.0,0.0153905]
[1693843845195,0.25488855,25868.0,25867.0,0.021]
[1693843845795,0.47698062,25868.0,25867.0,0.021]
[1693843846437,0.47698062,25868.0,25864.0,0.1543]
[1693843846641,0.25688855,25868.0,25866.0,0.021]
[1693843846847,0.21401543,25867.0,25866.0,0.021]
[1693843847022,0.21401543,25867.0,25863.0,1.00305636]
[1693843847229,0.21401543,25867.0,25863.0,0.77106936]
[1693843847783,0.21401543,25867.0,25866.0,0.024]
[1693843847984,0.21401543,25867.0,25863.0,1.0951821]
[1693843848239,0.21601543,25867.0,25863.0,0.6122101]
[1693843848416,0.158679,25867.0,25863.0,0.4042251]
[1693843848620,1.86872517,25867.0,25863.0,0.4042251]
[1693843848822,2.35046509,25867.0,25863.0,0.33209936]
[1693843849024,2.35046509,25867.0,25863.0,0.31209936]
[1693843849237,2.35046509,25867.0,25863.0,0.33209936]
[1693843849435,2.08969627,25867.0,25863.0,0.2111]
[1693843849674,2.09169627,25867.0,25866.0,0.02]
[1693843849842,2.08969627,25867.0,25866.0,0.02]
[1693843850043,2.40247895,25867.0,25866.0,0.0593905]
[1693843850262,3.17166495,25867.0,25866.0,0.0153905]
[1693843850463,3.17366495,25867.0,25866.0,0.0153905]
[1693843850646,3.17566495,25867.0,25863.0,0.044]
[1693843851036,0.98945456,25866.0,25862.0,0.09959958]
[1693843851244,0.21616402,25866.0,25862.0,0.09959958]
[1693843851453,0.306879,25867.0,25862.0,0.56359858]
[1693843851661,0.69352427,25867.0,25862.0,0.95025669]
[1693843851893,0.69552427,25867.0,25863.0,0.024]
[1693843852101,0.69552427,25867.0,25863.0,0.487975]
[1693843852586,0.69352427,25867.0,25863.0,0.487975]
[1693843853004,0.69152427,25867.0,25863.0,0.463975]
[1693843853238,0.002,25866.0,25863.0,0.463975]
[1693843853460,0.002,25866.0,25863.0,0.483975]
[1693843853612,0.69352427,25867.0,25863.0,0.483975]
[1693843853792,0.69552427,25867.0,25863.0,0.507975]
[1693843853991,0.156679,25867.0,25863.0,0.85062411]
[1693843854175,0.002,25866.0,25863.0,0.859466]
[1693843854379,0.004,25866.0,25863.0,0.883466]
[1693843854655,0.002,25866.0,25863.0,0.859466]
[1693843855020,0.002,25866.0,25864.0,0.0153094]
[1693843855179,0.002,25866.0,25864.0,0.4792674]
[1693843855587,0.156679,25867.0,25864.0,0.4792674]
[1693843856646,0.002,25866.0,25864.0,0.4792674]
[1693843856898,0.154679,25867.0,25864.0,0.4792674]
[1693843857104,0.156679,25867.0,25864.0,0.4992674]
[1693843857250,0.158679,25867.0,25864.0,0.5202674]
[1693843857654,0.156679,25867.0,25864.0,0.4992674]
[1693843857831,0.002,25866.0,25864.0,0.5202674]
[1693843858260,0.156679,25867.0,25864.0,0.4992674]
[1693843858844,0.154679,25867.0,25864.0,0.4792674]
[1693843859065,0.2858401,25866.0,25864.0,0.4992674]
[1693843859470,0.2838401,25866.0,25864.0,0.4792674]
[1693843859678,0.2838401,25866.0,25864.0,0.5002674]
[1693843859889,0.2838401,25866.0,25864.0,0.4992674]
[1693843860310,0.2858401,25866.0,25864.0,0.5202674]
[1693843860518,0.2858401,25866.0,25864.0,0.5002674]
[1693843862054,0.2878401,25866.0,25864.0,0.5202674]
[1693843863106,0.2878401,25866.0,25864.0,0.6279674]
[1693843863985,0.29793926,25865.0,25864.0,0.0563094]
[1693843864213,1.07118426,25865.0,25864.0,0.0563094]
[1693843864666,2.23107453,25865.0,25864.0,0.0563094]
[1693843865095,2.23107453,25865.0,25864.0,0.0363094]
[1693843865309,2.6177198,25865.0,25864.0,0.0363094]
[1693843865531,2.6197198,25865.0,25864.0,0.0563094]
[1693843866142,2.6197198,25865.0,25864.0,0.0353094]
[1693843866352,2.6217198,25865.0,25864.0,0.0563094]
[1693843869103,2.32378054,25865.0,25864.0,0.0563094]
[1693843869372,3.26472554,25865.0,25864.0,0.0563094]
[1693843869727,3.26472554,25865.0,25864.0,0.041]
[1693843870135,3.52291929,25865.0,25864.0,0.02]
[1693843870339,3.13427402,25865.0,25859.0,0.232022]
[1693843870536,2.25332902,25865.0,25864.0,0.004]
[1693843870743,2.25332902,25865.0,25860.0,0.24737896]
[1693843870940,3.17887402,25865.0,25860.0,0.24737896]
[1693843871170,3.58851929,25865.0,25864.0,0.002]
[1693843871726,3.59051929,25865.0,25864.0,0.02]
[1693843872281,3.20187402,25865.0,25860.0,0.24737896]
[1693843872463,3.19887402,25865.0,25864.0,0.01735931]
[1693843872661,3.22287402,25865.0,25864.0,0.01935931]
[1693843872862,3.07057402,25865.0,25864.0,0.01935931]
[1693843873267,3.05057402,25865.0,25864.0,0.01735931]
[1693843873467,3.05971905,25865.0,25864.0,0.01735931]
[1693843873881,3.34373669,25865.0,25864.0,0.01735931]
[1693843874087,3.05971905,25865.0,25864.0,0.01735931]
[1693843874424,3.05971905,25865.0,25864.0,0.002]
[1693843874625,3.05971905,25865.0,25864.0,0.01596023]
[1693843874864,3.05771905,25865.0,25864.0,0.01596023]
[1693843875076,3.07771905,25865.0,25864.0,0.004]
[1693843875901,2.81038027,25865.0,25864.0,0.004]
[1693843878357,3.02461504,25865.0,25864.0,0.004]
[1693843878513,2.81038027,25865.0,25864.0,0.004]
[1693843878706,3.09129197,25865.0,25864.0,0.004]
[1693843879124,2.81038027,25865.0,25864.0,0.004]
[1693843879327,3.15619346,25865.0,25864.0,0.004]
[1693843879532,3.4158643,25865.0,25864.0,0.004]
[1693843879731,1.52356111,25865.0,25864.0,0.004]
[1693843879980,1.13691584,25865.0,25864.0,0.004]
[1693843880184,1.07691584,25865.0,25864.0,0.004]
[1693843880329,1.07691584,25865.0,25864.0,0.1117]
[1693843880330,0.044,25865.0,25864.0,0.1117]
[1693843880547,0.044,25865.0,25864.0,0.58966224]
[1693843881426,0.024,25865.0,25864.0,0.12369824]
[1693843881839,0.25458476,25865.0,25864.0,0.12369824]
[1693843882038,0.23058476,25865.0,25864.0,0.01399824]
[1693843882241,0.49807304,25865.0,25864.0,0.01399824]
[1693843882452,3.09856855,25865.0,25864.0,0.01499824]
[1693843882651,3.09856855,25865.0,25860.0,0.31968219]
[1693843882652,3.08756855,25865.0,25860.0,0.10750944]
[1693843882855,0.38664527,25864.0,25860.0,0.10750944]
[1693843883056,1.76704112,25863.0,25860.0,0.10750944]
[1693843883268,2.15368639,25863.0,25860.0,0.10750944]
[1693843883471,1.38037539,25863.0,25860.0,0.10750944]
[1693843883875,0.773284,25864.0,25861.0,0.19984548]
[1693843884082,0.775284,25864.0,25861.0,0.19984548]
[1693843884490,1.05290094,25864.0,25861.0,0.19984548]
[1693843884711,1.82618894,25864.0,25861.0,0.19984548]
[1693843885114,1.82618894,25864.0,25862.0,0.013366]
[1693843885350,0.27001846,25863.0,25862.0,0.013366]
[1693843885584,1.81862846,25863.0,25862.0,0.013366]
[1693843885788,1.81662846,25863.0,25861.0,0.019]
[1693843886198,1.81662846,25863.0,25862.0,0.004]
[1693843886405,1.81662846,25863.0,25861.0,0.019]
[1693843886841,1.81662846,25863.0,25862.0,0.004]
[1693843887044,0.768284,25864.0,25862.0,0.004]
[1693843887241,0.06,25865.0,25862.0,0.004]
[1693843887492,0.002,25863.0,25862.0,0.019]
[1693843887645,0.002,25863.0,25862.0,0.5907]
[1693843887861,0.04928041,25866.0,25862.0,0.5757]
[1693843888048,0.04928041,25866.0,25863.0,0.1077]
[1693843888271,0.002,25864.0,25863.0,0.339691]
[1693843888489,0.002,25864.0,25863.0,0.1077]
[1693843888717,0.82249941,25866.0,25863.0,0.1077]
[1693843889099,1.59772841,25866.0,25863.0,0.1077]
[1693843889482,0.005,25864.0,25863.0,0.1087]
[1693843889683,1.59772841,25866.0,25863.0,0.1077]
[1693843890097,1.60272841,25866.0,25863.0,0.1087]
[1693843890291,1.59572841,25866.0,25863.0,0.1077]
[1693843890496,0.05028041,25866.0,25863.0,0.1137]
[1693843890749,0.05028041,25866.0,25863.0,0.345691]
[1693843891688,0.05028041,25866.0,25863.0,0.1137]
[1693843891887,0.04528041,25866.0,25863.0,0.1137]
[1693843892105,1.81412775,25866.0,25863.0,0.1137]
[1693843892304,0.005,25864.0,25863.0,0.1147]
[1693843892527,1.76984734,25866.0,25863.0,0.1137]
[1693843892731,1.00163134,25866.0,25863.0,0.1147]
[1693843892938,0.006,25866.0,25863.0,0.57868]
[1693843893381,0.006,25866.0,25863.0,0.702971]
[1693843893599,0.006,25866.0,25865.0,0.1077]
[1693843893600,0.005,25866.0,25865.0,0.1077]
[1693843893865,0.005,25866.0,25864.0,0.33968]
[1693843894507,0.006,25866.0,25864.0,0.33968]
[1693843894695,0.001,25866.0,25864.0,0.33968]
[1693843894935,0.001,25866.0,25864.0,0.1077]
[1693843895163,0.023,25866.0,25865.0,0.002]
[1693843895368,0.003,25866.0,25864.0,0.1077]
[1693843895574,0.017,25866.0,25864.0,0.1087]
[1693843895952,0.017,25866.0,25864.0,0.340682]
[1693843896571,0.014,25866.0,25864.0,0.340682]
[1693843896708,0.026,25866.0,25865.0,0.001]
[1693843897494,0.014,25866.0,25864.0,0.340682]
[1693843897710,0.017,25866.0,25864.0,0.340682]
[1693843897916,0.003,25866.0,25864.0,0.339682]
[1693843898126,0.927865,25867.0,25864.0,0.339682]
[1693843898327,0.023,25866.0,25865.0,0.002]
[1693843898529,0.012,25866.0,25865.0,0.001]
[1693843898736,0.026,25866.0,25865.0,0.001]
[1693843899163,0.012,25866.0,25865.0,0.001]
[1693843899541,0.927865,25867.0,25864.0,0.1077]
[1693843899952,0.27928466,25866.0,25865.0,0.002]
[1693843900164,0.27928466,25866.0,25865.0,0.01536209]
[1693843900574,2.59892966,25866.0,25865.0,0.01536209]
[1693843900772,2.98557493,25866.0,25865.0,0.01536209]
[1693843901176,2.98557493,25866.0,25865.0,0.01636209]
[1693843901177,2.74129027,25866.0,25865.0,0.01636209]
[1693843901405,2.84899027,25866.0,25865.0,0.01636209]
[1693843901540,2.84899027,25866.0,25865.0,0.003]
[1693843901962,3.23563554,25866.0,25865.0,0.003]
[1693843903920,3.29563554,25866.0,25865.0,0.003]
[1693843904742,2.90899027,25866.0,25865.0,0.003]
[1693843905369,3.00168819,25866.0,25865.0,0.003]
[1693843905571,3.02168819,25866.0,25865.0,0.003]
[1693843906621,3.00968819,25866.0,25865.0,0.002]
[1693843906827,0.02,25864.0,25860.0,0.01536396]
[1693843907030,3.76764049,25863.0,25860.0,0.01536396]
[1693843908064,3.76764049,25863.0,25861.0,0.01225377]
[1693843908676,3.87634049,25863.0,25861.0,0.01225377]
[1693843909089,3.87634049,25863.0,25861.0,0.01325377]
[1693843909090,3.88734049,25863.0,25861.0,0.01325377]
[1693843909325,4.1145892,25863.0,25861.0,0.01325377]
[1693843909703,0.21057977,25862.0,25861.0,0.01325377]
[1693843909941,2.91723004,25862.0,25861.0,0.01325377]
[1693843911013,2.91823004,25862.0,25861.0,0.01325377]
[1693843911225,3.30487531,25862.0,25861.0,0.01325377]
[1693843911429,3.30487531,25862.0,25861.0,0.01225377]
[1693843911845,3.31587531,25862.0,25861.0,0.01325377]
[1693843912058,3.31587531,25862.0,25861.0,0.001]
[1693843912243,3.10529554,25862.0,25861.0,0.001]
[1693843913081,3.23299554,25862.0,25861.0,0.001]
[1693843913870,3.49518201,25862.0,25861.0,0.001]
[1693843914078,3.51518201,25862.0,25861.0,0.001]
[1693843914278,3.25299554,25862.0,25861.0,0.001]
[1693843914464,3.49437378,25862.0,25861.0,0.001]
[1693843916462,0.012,25862.0,25861.0,0.001]
[1693843916942,0.012,25862.0,25861.0,0.01329057]
[1693843917371,0.012,25862.0,25861.0,0.47730857]
[1693843917576,0.012,25862.0,25861.0,0.58500857]
[1693843917807,0.012,25862.0,25861.0,0.81701757]
[1693843918645,0.001,25862.0,25861.0,0.81601757]
[1693843918849,0.002,25862.0,25861.0,0.82301757]
[1693843919430,0.001,25862.0,25861.0,0.82301757]
[1693843919604,0.003,25862.0,25861.0,0.83101757]
[1693843920235,0.001,25862.0,25861.0,0.82301757]
[1693843920458,0.003,25862.0,25861.0,0.83101757]
[1693843924392,0.003,25862.0,25861.0,0.92328915]
[1693843927897,0.003,25862.0,25861.0,0.69128015]
[1693843929590,0.003,25862.0,25861.0,0.59900857]
[1693843930008,0.003,25862.0,25861.0,0.13499057]
[1693843930362,0.24192129,25862.0,25861.0,0.13499057]
[1693843930565,1.78859129,25862.0,25861.0,0.02729057]
[1693843931017,2.12211162,25862.0,25861.0,0.02729057]
[1693843931844,1.54967,25862.0,25861.0,0.02729057]
[1693843932169,0.003,25862.0,25861.0,0.13499057]
[1693843937066,0.003,25862.0,25861.0,0.36699957]
[1693843939266,0.003,25862.0,25861.0,0.13499057]
[1693843946430,1.54967,25862.0,25861.0,0.13499057]
[1693843948935,1.76809553,25862.0,25861.0,0.13499057]
[1693843949141,2.54143053,25862.0,25861.0,0.02729057]
[1693843951064,2.88809198,25862.0,25861.0,0.02729057]
[1693843951298,2.66966645,25862.0,25861.0,0.02729057]
[1693843951713,3.05631172,25862.0,25861.0,0.015]
[1693843952126,3.05431172,25862.0,25861.0,0.007]
[1693843952332,3.05431172,25862.0,25860.0,0.01536396]
[1693843952545,0.77329054,25861.0,25860.0,0.01536396]
[1693843952756,3.09338554,25861.0,25860.0,0.01536396]
[1693843954599,3.09338554,25861.0,25860.0,0.01636396]
[1693843954805,3.09438554,25861.0,25860.0,0.01536396]
[1693843955214,3.31203778,25861.0,25860.0,0.01536396]
[1693843955629,3.32303778,25861.0,25860.0,0.01636396]
[1693843957868,2.93639251,25861.0,25860.0,0.01636396]
[1693843959412,2.93639251,25861.0,25860.0,0.02816645]
[1693843962057,3.65980527,25861.0,25860.0,0.02816645]
[1693843962474,3.65980527,25861.0,25860.0,0.01636396]
[1693843962863,3.55210527,25861.0,25860.0,0.01636396]
[1693843963073,3.93875054,25861.0,25860.0,0.01636396]
[1693843964596,4.04645054,25861.0,25860.0,0.01636396]
[1693843965419,4.03545054,25861.0,25860.0,0.01536396]
[1693843965627,4.05845054,25861.0,25860.0,0.01536396]
[1693843966041,4.35945054,25861.0,25860.0,0.01536396]
[1693843966401,4.35845054,25861.0,25860.0,0.01536396]
[1693843966835,4.38245054,25861.0,25860.0,0.01636396]
[1693843971973,4.40245054,25861.0,25860.0,0.01636396]
[1693843972797,4.66376789,25861.0,25860.0,0.01636396]
[1693843973022,4.16942262,25861.0,25860.0,0.01636396]
[1693843973582,3.90810527,25861.0,25860.0,0.01636396]
[1693843979757,4.01580527,25861.0,25860.0,0.01636396]
[1693843982535,4.11580527,25861.0,25860.0,0.01636396]
[1693843989032,4.11540121,25861.0,25860.0,0.01636396]
[1693843989443,4.50204648,25861.0,25860.0,0.01636396]
[1693843992070,4.11540121,25861.0,25860.0,0.01636396]
[1693843992450,4.38579253,25861.0,25860.0,0.01636396]
[1693843992627,4.11540121,25861.0,25860.0,0.01636396]
[1693843992827,4.37544188,25861.0,25860.0,0.01636396]
[1693843993028,4.11540121,25861.0,25860.0,0.01636396]
[1693843993244,4.50204648,25861.0,25860.0,0.01636396]
[1693843993817,4.44204648,25861.0,25860.0,0.01636396]
[1693843994006,4.50204648,25861.0,25860.0,0.01636396]
[1693843995250,4.72128807,25861.0,25860.0,0.01636396]
[1693843996029,4.72098274,25861.0,25860.0,0.01636396]
[1693843997046,4.33433747,25861.0,25860.0,0.01636396]
[1693843997811,4.01509588,25861.0,25860.0,0.01636396]
[1693843998036,1.181365,25861.0,25860.0,0.01636396]
[1693843998243,1.181365,25861.0,25860.0,0.12406396]
[1693843998244,1.95473,25861.0,25860.0,0.12406396]
[1693843998655,1.181365,25861.0,25860.0,0.13587442]
[1693844000527,0.108,25861.0,25860.0,0.13587442]
[1693844001440,0.881365,25861.0,25860.0,0.13587442]
[1693844002476,1.65473,25861.0,25860.0,0.02817442]
[1693844002688,1.93060942,25861.0,25860.0,0.02817442]
[1693844005568,1.65473,25861.0,25860.0,0.02817442]
[1693844007525,1.59473,25861.0,25860.0,0.02817442]
[1693844007754,1.65473,25861.0,25860.0,0.02817442]
[1693844010100,2.23835691,25861.0,25860.0,0.02817442]
[1693844010306,3.01172191,25861.0,25860.0,0.02817442]
[1693844019189,2.95172191,25861.0,25860.0,0.02817442]
[1693844019394,2.67242821,25861.0,25860.0,0.02817442]
[1693844022713,2.65242821,25861.0,25860.0,0.02817442]
[1693844025672,2.368095,25861.0,25860.0,0.02817442]
[1693844025849,2.408095,25861.0,25860.0,0.02817442]
[1693844026048,2.75664932,25861.0,25860.0,0.02817442]
[1693844026372,2.94251445,25861.0,25860.0,0.02817442]
[1693844026704,2.98251445,25861.0,25860.0,0.02817442]
[1693844026877,2.98251445,25861.0,25860.0,0.01636396]
[1693844028803,2.98251445,25861.0,25860.0,0.02817442]
[1693844029670,3.14329459,25861.0,25860.0,0.02817442]
[1693844030071,3.14329459,25861.0,25860.0,0.01636396]
[1693844030273,3.16329459,25861.0,25860.0,0.01636396]
[1693844030475,4.16561267,25861.0,25860.0,0.01636396]
[1693844030674,4.07469344,25861.0,25860.0,0.01636396]
[1693844030882,4.07943344,25861.0,25860.0,0.01636396]
[1693844031103,4.08249344,25861.0,25860.0,0.01636396]
[1693844031306,4.07865344,25861.0,25860.0,0.01636396]
[1693844031606,4.02627344,25861.0,25860.0,0.01536396]
[1693844031832,4.07277344,25861.0,25860.0,0.01536396]
[1693844032054,4.07331344,25861.0,25860.0,0.01536396]
[1693844032261,4.07313344,25861.0,25860.0,0.01536396]
[1693844032660,4.07277344,25861.0,25860.0,0.01536396]
[1693844032864,4.07247344,25861.0,25860.0,0.01536396]
[1693844033014,4.07571344,25861.0,25860.0,0.01536396]
[1693844033221,4.07691344,25861.0,25860.0,0.01536396]
[1693844033420,4.07817344,25861.0,25860.0,0.01536396]